[Event "*** Titled Tuesday 3|2 Blitz"]
[Site "Chess.com"]
[Date "2016.06.07"]
[Round "1"]
[White "TheLancer"]
[Black "silverback96"]
[Result "1-0"]
[WhiteElo "2451"]
[BlackElo "2048"]
[TimeControl "180+2"]
[EndTime "17:08:52 PDT"]
[Termination "TheLancer won by checkmate"]

1. e4 {[%clk 0:03:01.9]} 1... e6 {[%clk 0:03:00.5]} 2. d4 {[%clk 0:03:02.1]}
2... d5 {[%clk 0:03:02.1]} 3. Nc3 {[%clk 0:03:02.6]} 3... Bb4 {[%clk 0:03:02.7]}
4. e5 {[%clk 0:03:03.7]} 4... c5 {[%clk 0:03:04.3]} 5. a3 {[%clk 0:03:05.4]}
5... Bxc3+ {[%clk 0:03:06]} 6. bxc3 {[%clk 0:03:07.3]} 6... Qa5 {[%clk
0:03:07.6]} 7. Bd2 {[%clk 0:03:08.1]} 7... Qa4 {[%clk 0:03:09.2]} 8. Qb1 {[%clk
0:03:09.8]} 8... c4 {[%clk 0:03:09.9]} 9. Nh3 {[%clk 0:03:11.4]} 9... Nc6 {[%clk
0:03:10.3]} 10. Nf4 {[%clk 0:03:13]} 10... Bd7 {[%clk 0:03:00.8]} 11. h4 {[%clk
0:03:13.5]} 11... O-O-O {[%clk 0:03:01.1]} 12. h5 {[%clk 0:03:14.4]} 12... h6
{[%clk 0:02:56.1]} 13. Rh3 {[%clk 0:03:14.3]} 13... Nge7 {[%clk 0:02:56.9]} 14.
Rf3 {[%clk 0:03:11.8]} 14... Rdf8 {[%clk 0:02:56.6]} 15. Ne2 {[%clk 0:03:00.8]}
15... f6 {[%clk 0:02:33.5]} 16. exf6 {[%clk 0:03:01.2]} 16... gxf6 {[%clk
0:02:35.4]} 17. Rg3 {[%clk 0:02:54.2]} 17... e5 {[%clk 0:02:33.3]} 18. Be3
{[%clk 0:02:39.5]} 18... Nf5 {[%clk 0:02:26.2]} 19. Rg6 {[%clk 0:02:39.9]} 19...
Be8 {[%clk 0:02:24.1]} 20. g3 {[%clk 0:02:11]} 20... Bxg6 {[%clk 0:02:18.1]} 21.
hxg6 {[%clk 0:02:12.9]} 21... Nxe3 {[%clk 0:02:17.1]} 22. fxe3 {[%clk 0:02:14]}
22... Rhg8 {[%clk 0:02:15.8]} 23. Bh3+ {[%clk 0:02:15.3]} 23... f5 {[%clk
0:02:16.8]} 24. dxe5 {[%clk 0:02:12.3]} 24... Nxe5 {[%clk 0:02:16.8]} 25. Nd4
{[%clk 0:02:13.8]} 25... Rxg6 {[%clk 0:02:00.1]} 26. Bxf5+ {[%clk 0:02:05.2]}
26... Rxf5 {[%clk 0:02:00.7]} 27. Nxf5 {[%clk 0:02:07.1]} 27... Qd7 {[%clk
0:01:50.5]} 28. Nd4 {[%clk 0:01:30]} 28... Rxg3 {[%clk 0:01:49.9]} 29. Ne2
{[%clk 0:01:29.5]} 29... Rxe3 {[%clk 0:01:45.2]} 30. Qb4 {[%clk 0:01:26.8]}
30... Nf3+ {[%clk 0:01:39.3]} 31. Kf2 {[%clk 0:01:25.6]} 31... Qe8 {[%clk
0:01:40.3]} 32. Qc5+ {[%clk 0:01:26.3]} 32... Kb8 {[%clk 0:01:40.5]} 33. Qxe3
{[%clk 0:01:27.9]} 33... Ne5 {[%clk 0:01:35.6]} 34. Rg1 {[%clk 0:01:20.3]} 34...
Qh5 {[%clk 0:01:25]} 35. Qf4 {[%clk 0:01:16.6]} 35... Kc7 {[%clk 0:01:18.1]} 36.
Rg7+ {[%clk 0:01:07.7]} 36... Kb6 {[%clk 0:01:14.8]} 37. Nd4 {[%clk 0:01:02.3]}
37... Ka6 {[%clk 0:01:04.7]} 38. a4 {[%clk 0:00:40.8]} 38... Kb6 {[%clk
0:00:40.4]} 39. Nb5 {[%clk 0:00:35.7]} 39... a6 {[%clk 0:00:40.3]} 40. Nd6
{[%clk 0:00:23.4]} 40... Ka5 {[%clk 0:00:41.3]} 41. Nxb7+ {[%clk 0:00:20.9]}
41... Kxa4 {[%clk 0:00:39.7]} 42. Nc5+ {[%clk 0:00:21.2]} 42... Kb5 {[%clk
0:00:37.1]} 43. Ne6 {[%clk 0:00:21.1]} 43... Kb6 {[%clk 0:00:30.3]} 44. Qd4+
{[%clk 0:00:20.5]} 44... Ka5 {[%clk 0:00:22.5]} 45. Qc5+ {[%clk 0:00:20.4]}
45... Ka4 {[%clk 0:00:24]} 46. Qb4# {[%clk 0:00:21.2]} 1-0

[Event "*** Titled Tuesday 3|2 Blitz"]
[Site "Chess.com"]
[Date "2016.06.07"]
[Round "1"]
[White "chickencrossroad"]
[Black "Dr-Bassem"]
[Result "0-1"]
[WhiteElo "2225"]
[BlackElo "2592"]
[TimeControl "180+2"]
[EndTime "17:08:57 PDT"]
[Termination "Dr-Bassem won by resignation"]

1. e4 {[%clk 0:03:01.9]} 1... e5 {[%clk 0:02:52.8]} 2. Nf3 {[%clk 0:03:02.2]}
2... Nc6 {[%clk 0:02:54.3]} 3. Bc4 {[%clk 0:02:58]} 3... Nf6 {[%clk 0:02:54.7]}
4. d3 {[%clk 0:02:55.3]} 4... h6 {[%clk 0:02:53.7]} 5. c3 {[%clk 0:02:41]} 5...
d6 {[%clk 0:02:54.5]} 6. Bb3 {[%clk 0:02:38]} 6... g6 {[%clk 0:02:55.5]} 7. h3
{[%clk 0:02:22.6]} 7... Bg7 {[%clk 0:02:56.2]} 8. O-O {[%clk 0:02:24.2]} 8...
O-O {[%clk 0:02:57]} 9. Re1 {[%clk 0:02:22.5]} 9... a6 {[%clk 0:02:42.9]} 10. d4
{[%clk 0:02:17.5]} 10... Re8 {[%clk 0:02:26.1]} 11. Nh4 {[%clk 0:01:50.5]} 11...
exd4 {[%clk 0:01:56.7]} 12. Nxg6 {[%clk 0:01:44.9]} 12... Nxe4 {[%clk
0:01:56.2]} 13. Nd2 {[%clk 0:01:07.4]} 13... Nc5 {[%clk 0:00:42]} 14. Bd5 {[%clk
0:00:46.3]} 14... dxc3 {[%clk 0:00:11.6]} 15. bxc3 {[%clk 0:00:42.5]} 15... Bxc3
{[%clk 0:00:13.5]} 16. Rb1 {[%clk 0:00:34.1]} 16... Bf5 {[%clk 0:00:13.9]} 17.
Rxe8+ {[%clk 0:00:09.4]} 17... Qxe8 {[%clk 0:00:15.8]} 18. Qh5 {[%clk
0:00:11.3]} 18... Bxb1 {[%clk 0:00:13.1]} 19. Nxb1 {[%clk 0:00:09]} 19... Bg7
{[%clk 0:00:13.2]} 20. Bd2 {[%clk 0:00:05.6]} 20... Ne7 {[%clk 0:00:11.5]} 21.
Nxe7+ {[%clk 0:00:02.4]} 21... Qxe7 {[%clk 0:00:13.4]} 22. Nc3 {[%clk
0:00:03.3]} 22... Re8 {[%clk 0:00:12.8]} 23. Qg4 {[%clk 0:00:03.4]} 23... Qf6
{[%clk 0:00:12.1]} 24. Kh2 {[%clk 0:00:02.7]} 24... c6 {[%clk 0:00:13.1]} 25.
Bc4 {[%clk 0:00:03.6]} 25... d5 {[%clk 0:00:14.5]} 26. Be2 {[%clk 0:00:03.5]}
26... Ne4 {[%clk 0:00:15.5]} 27. Nxe4 {[%clk 0:00:04.7]} 27... Rxe4 {[%clk
0:00:15.9]} 28. Qc8+ {[%clk 0:00:04.6]} 28... Bf8 {[%clk 0:00:14.6]} 29. Bd3
{[%clk 0:00:04.7]} 29... Qd6+ {[%clk 0:00:09.5]} 30. g3 {[%clk 0:00:04.9]} 30...
Rd4 {[%clk 0:00:09.6]} 31. Qf5 {[%clk 0:00:03.8]} 31... Qg6 {[%clk 0:00:10.3]}
32. Qe5 {[%clk 0:00:02.2]} 32... Rxd3 {[%clk 0:00:11.3]} 33. Bc3 {[%clk
0:00:03.4]} 33... Rxc3 {[%clk 0:00:12.2]} 34. Qxc3 {[%clk 0:00:04.6]} 34... Bg7
{[%clk 0:00:13.7]} 35. Qe3 {[%clk 0:00:05.2]} 35... d4 {[%clk 0:00:14.6]} 36.
Qe8+ {[%clk 0:00:04.5]} 36... Kh7 {[%clk 0:00:15.9]} 37. Qd7 {[%clk 0:00:06.4]}
37... d3 {[%clk 0:00:16.6]} 38. Kg2 {[%clk 0:00:07.5]} 38... c5 {[%clk
0:00:17.8]} 39. Qd5 {[%clk 0:00:08.5]} 39... Qc6 {[%clk 0:00:18.4]} 40. Qxc6
{[%clk 0:00:08.7]} 40... bxc6 {[%clk 0:00:20.3]} 41. Kf3 {[%clk 0:00:10.6]}
41... c4 {[%clk 0:00:21.9]} 42. Ke3 {[%clk 0:00:12]} 42... c5 {[%clk 0:00:22.3]}
0-1

[Event "*** Titled Tuesday 3|2 Blitz"]
[Site "Chess.com"]
[Date "2016.06.07"]
[Round "1"]
[White "kikydu96"]
[Black "metalbattler"]
[Result "1-0"]
[WhiteElo "2406"]
[BlackElo "1950"]
[TimeControl "180+2"]
[EndTime "17:09:01 PDT"]
[Termination "kikydu96 won on time"]

1. e4 {[%clk 0:03:01.7]} 1... d5 {[%clk 0:02:58]} 2. exd5 {[%clk 0:03:02.4]}
2... Nf6 {[%clk 0:02:59.5]} 3. Bb5+ {[%clk 0:03:01.3]} 3... Bd7 {[%clk
0:03:00.3]} 4. Be2 {[%clk 0:03:02.5]} 4... Nxd5 {[%clk 0:02:58.9]} 5. d4 {[%clk
0:03:04.1]} 5... Bf5 {[%clk 0:02:57.4]} 6. c4 {[%clk 0:02:49]} 6... Nb6 {[%clk
0:02:57.4]} 7. Nc3 {[%clk 0:02:46.6]} 7... e6 {[%clk 0:02:58.2]} 8. Nf3 {[%clk
0:02:47.5]} 8... Be7 {[%clk 0:02:57.1]} 9. O-O {[%clk 0:02:48.9]} 9... O-O
{[%clk 0:02:57.9]} 10. Be3 {[%clk 0:02:48.5]} 10... N8d7 {[%clk 0:02:57]} 11. a4
{[%clk 0:02:48.6]} 11... c5 {[%clk 0:02:38.8]} 12. a5 {[%clk 0:02:48.3]} 12...
Nc8 {[%clk 0:02:38.6]} 13. d5 {[%clk 0:02:48.2]} 13... Nd6 {[%clk 0:02:31.7]}
14. a6 {[%clk 0:02:45.9]} 14... b6 {[%clk 0:02:31.5]} 15. Bd3 {[%clk 0:02:41.6]}
15... Bg4 {[%clk 0:02:12.4]} 16. Qc2 {[%clk 0:02:38.4]} 16... Bxf3 {[%clk
0:02:03]} 17. gxf3 {[%clk 0:02:38.8]} 17... Kh8 {[%clk 0:02:04.6]} 18. Kh1
{[%clk 0:02:38.7]} 18... Ne5 {[%clk 0:01:58.5]} 19. b3 {[%clk 0:02:32.6]} 19...
Nxd3 {[%clk 0:01:41.6]} 20. Qxd3 {[%clk 0:02:34.5]} 20... Nf5 {[%clk 0:01:40.6]}
21. Rad1 {[%clk 0:02:29.2]} 21... Bf6 {[%clk 0:01:36]} 22. Ne4 {[%clk
0:02:29.1]} 22... Be5 {[%clk 0:01:31.9]} 23. f4 {[%clk 0:02:29]} 23... Bd4
{[%clk 0:01:27.9]} 24. Bxd4 {[%clk 0:02:27.9]} 24... Nxd4 {[%clk 0:01:29.8]} 25.
d6 {[%clk 0:02:17.8]} 25... Qh4 {[%clk 0:01:26.7]} 26. Qg3 {[%clk 0:02:14.5]}
26... Qh5 {[%clk 0:01:23.2]} 27. Rg1 {[%clk 0:01:42.9]} 27... Rg8 {[%clk
0:01:16]} 28. Qe3 {[%clk 0:01:26.4]} 28... Rad8 {[%clk 0:01:13]} 29. Rd3 {[%clk
0:01:25.5]} 29... f5 {[%clk 0:00:53]} 30. Ng5 {[%clk 0:01:22.2]} 30... Rxd6
{[%clk 0:00:52.1]} 31. Qe5 {[%clk 0:01:22.5]} 31... Rgd8 {[%clk 0:00:44.9]} 32.
Rh3 {[%clk 0:01:23.1]} 32... Qg6 {[%clk 0:00:38.1]} 33. Rxh7+ {[%clk 0:01:14]}
33... Kg8 {[%clk 0:00:38.1]} 34. Rh3 {[%clk 0:00:40.9]} 34... Nxb3 {[%clk
0:00:15.9]} 35. Rxb3 {[%clk 0:00:40.8]} 35... Rd1 {[%clk 0:00:15.9]} 36. Rg3
{[%clk 0:00:39.7]} 36... Qh5 {[%clk 0:00:10.6]} 37. Qxe6+ {[%clk 0:00:28.8]}
37... Kf8 {[%clk 0:00:09.8]} 38. Qxf5+ {[%clk 0:00:29.5]} 38... Kg8 {[%clk
0:00:10.2]} 39. Qe6+ {[%clk 0:00:30]} 39... Kf8 {[%clk 0:00:10.4]} 40. Qg4
{[%clk 0:00:17.2]} 1-0

[Event "*** Titled Tuesday 3|2 Blitz"]
[Site "Chess.com"]
[Date "2016.06.07"]
[Round "1"]
[White "Ksenia_Legenko"]
[Black "Danirod"]
[Result "1/2-1/2"]
[WhiteElo "2046"]
[BlackElo "2426"]
[TimeControl "180+2"]
[EndTime "17:09:25 PDT"]
[Termination "Game drawn - insufficient material"]

1. d4 {[%clk 0:02:50.8]} 1... Nf6 {[%clk 0:03:00.2]} 2. c4 {[%clk 0:02:51.5]}
2... e5 {[%clk 0:03:01.2]} 3. dxe5 {[%clk 0:02:51.8]} 3... Ng4 {[%clk
0:03:02.4]} 4. Nf3 {[%clk 0:02:53.2]} 4... Bc5 {[%clk 0:03:03.3]} 5. e3 {[%clk
0:02:53.5]} 5... Nc6 {[%clk 0:03:04.1]} 6. Nc3 {[%clk 0:02:53.6]} 6... Ngxe5
{[%clk 0:03:03.3]} 7. Be2 {[%clk 0:02:54.2]} 7... O-O {[%clk 0:03:03.8]} 8. Nxe5
{[%clk 0:02:54.3]} 8... Nxe5 {[%clk 0:03:04.4]} 9. O-O {[%clk 0:02:56]} 9... Re8
{[%clk 0:03:04.5]} 10. b3 {[%clk 0:02:56.2]} 10... a5 {[%clk 0:03:04.4]} 11. Bb2
{[%clk 0:02:53.7]} 11... Ra6 {[%clk 0:03:05.5]} 12. Ne4 {[%clk 0:02:39]} 12...
Ba7 {[%clk 0:03:06]} 13. Ng3 {[%clk 0:02:34.1]} 13... Rh6 {[%clk 0:03:04]} 14.
Nf5 {[%clk 0:02:25.2]} 14... Rg6 {[%clk 0:03:01.1]} 15. Bd3 {[%clk 0:02:12.3]}
15... Nxd3 {[%clk 0:02:40.8]} 16. Qxd3 {[%clk 0:02:12.4]} 16... d6 {[%clk
0:02:42.3]} 17. Ng3 {[%clk 0:02:12.3]} 17... Qg5 {[%clk 0:02:23.2]} 18. Bd4
{[%clk 0:02:00.5]} 18... Bc5 {[%clk 0:02:24.2]} 19. Bxc5 {[%clk 0:02:00.1]}
19... Qxc5 {[%clk 0:02:26.1]} 20. Qd4 {[%clk 0:01:58.9]} 20... Qg5 {[%clk
0:02:23.8]} 21. f4 {[%clk 0:01:54.1]} 21... Qe7 {[%clk 0:01:59.9]} 22. Rae1
{[%clk 0:01:54.7]} 22... f5 {[%clk 0:01:49.2]} 23. e4 {[%clk 0:01:51.6]} 23...
fxe4 {[%clk 0:01:50.4]} 24. Rxe4 {[%clk 0:01:51.9]} 24... Re6 {[%clk 0:01:52]}
25. Rfe1 {[%clk 0:01:48.4]} 25... Qf7 {[%clk 0:01:48.7]} 26. f5 {[%clk
0:01:41.8]} 26... Rxe4 {[%clk 0:01:48.4]} 27. Rxe4 {[%clk 0:01:42.2]} 27... b6
{[%clk 0:01:47.9]} 28. Qe3 {[%clk 0:01:40.6]} 28... Rxe4 {[%clk 0:01:47.8]} 29.
Qxe4 {[%clk 0:01:41.8]} 29... Bd7 {[%clk 0:01:44.8]} 30. h3 {[%clk 0:01:41.2]}
30... Qe8 {[%clk 0:01:45.8]} 31. Qd5+ {[%clk 0:01:36.3]} 31... Kh8 {[%clk
0:01:44.2]} 32. Kh2 {[%clk 0:01:36.2]} 32... Bc6 {[%clk 0:01:45]} 33. Qd4 {[%clk
0:01:25.7]} 33... Qe5 {[%clk 0:01:14.6]} 34. Qxe5 {[%clk 0:01:19.7]} 34... dxe5
{[%clk 0:01:16.5]} 35. Kg1 {[%clk 0:01:13.4]} 35... Kg8 {[%clk 0:01:17.3]} 36.
Kf2 {[%clk 0:01:14]} 36... Kf7 {[%clk 0:01:18.7]} 37. Nf1 {[%clk 0:01:10]} 37...
h5 {[%clk 0:01:15]} 38. g3 {[%clk 0:01:09.3]} 38... Kf6 {[%clk 0:01:16.4]} 39.
Ne3 {[%clk 0:01:06.3]} 39... Kg5 {[%clk 0:01:12.3]} 40. a3 {[%clk 0:00:36.8]}
40... Be4 {[%clk 0:01:11.4]} 41. g4 {[%clk 0:00:37.3]} 41... hxg4 {[%clk
0:01:12.2]} 42. hxg4 {[%clk 0:00:37.8]} 42... Kf4 {[%clk 0:01:06.4]} 43. b4
{[%clk 0:00:38.7]} 43... axb4 {[%clk 0:01:07.6]} 44. axb4 {[%clk 0:00:39.3]}
44... c5 {[%clk 0:01:08.5]} 45. bxc5 {[%clk 0:00:31.1]} 45... bxc5 {[%clk
0:01:10.4]} 46. Nd5+ {[%clk 0:00:23.6]} 46... Kxg4 {[%clk 0:01:10.8]} 47. f6
{[%clk 0:00:24.6]} 47... gxf6 {[%clk 0:00:52.6]} 48. Nxf6+ {[%clk 0:00:25.9]}
48... Kf5 {[%clk 0:00:53.6]} 49. Nd7 {[%clk 0:00:27.4]} 49... Bd3 {[%clk
0:00:55.1]} 50. Nxc5 {[%clk 0:00:28.4]} 50... Bxc4 {[%clk 0:00:56.7]} 51. Ke3
{[%clk 0:00:29.5]} 51... Bd5 {[%clk 0:00:58]} 52. Nd3 {[%clk 0:00:29.8]} 52...
Be4 {[%clk 0:00:58]} 53. Nxe5 {[%clk 0:00:30.3]} 53... Kxe5 {[%clk 0:00:59.9]}
1/2-1/2

[Event "*** Titled Tuesday 3|2 Blitz"]
[Site "Chess.com"]
[Date "2016.06.07"]
[Round "1"]
[White "oskariot"]
[Black "Kawhi_Leonard2"]
[Result "0-1"]
[WhiteElo "2407"]
[BlackElo "2040"]
[TimeControl "180+2"]
[EndTime "17:09:48 PDT"]
[Termination "Kawhi_Leonard2 won by resignation"]

1. e4 {[%clk 0:03:00]} 1... c5 {[%clk 0:02:56.3]} 2. Nf3 {[%clk 0:03:00.8]} 2...
d6 {[%clk 0:02:55.6]} 3. d4 {[%clk 0:03:01.4]} 3... cxd4 {[%clk 0:02:51.1]} 4.
Nxd4 {[%clk 0:03:02.7]} 4... Nf6 {[%clk 0:02:52.1]} 5. Nc3 {[%clk 0:03:03.3]}
5... g6 {[%clk 0:02:52.8]} 6. Be3 {[%clk 0:03:01.2]} 6... Bg7 {[%clk 0:02:54.2]}
7. f3 {[%clk 0:03:02.5]} 7... O-O {[%clk 0:02:55.2]} 8. Qd2 {[%clk 0:03:04.4]}
8... Nc6 {[%clk 0:02:55.9]} 9. Bc4 {[%clk 0:03:05.7]} 9... Bd7 {[%clk
0:02:55.8]} 10. h4 {[%clk 0:03:07.1]} 10... h5 {[%clk 0:02:53.2]} 11. Bb3 {[%clk
0:03:08.2]} 11... Ne5 {[%clk 0:02:52.9]} 12. O-O-O {[%clk 0:03:06.2]} 12... Rc8
{[%clk 0:02:54.2]} 13. Bg5 {[%clk 0:03:06.7]} 13... Rc5 {[%clk 0:02:53.2]} 14.
Kb1 {[%clk 0:03:01.5]} 14... b5 {[%clk 0:02:53.9]} 15. Rhe1 {[%clk 0:02:57.4]}
15... Nc4 {[%clk 0:02:42.8]} 16. Qd3 {[%clk 0:02:54.4]} 16... Qb6 {[%clk
0:02:37.7]} 17. Bxf6 {[%clk 0:02:50.1]} 17... Bxf6 {[%clk 0:02:37.7]} 18. Nd5
{[%clk 0:02:51]} 18... Rxd5 {[%clk 0:02:38.4]} 19. exd5 {[%clk 0:02:51.6]} 19...
Rc8 {[%clk 0:02:33.5]} 20. c3 {[%clk 0:02:17.7]} 20... a5 {[%clk 0:02:19]} 21.
Bxc4 {[%clk 0:01:45.1]} 21... Rxc4 {[%clk 0:02:16.9]} 22. Ka1 {[%clk 0:01:40.3]}
22... Bxh4 {[%clk 0:02:11]} 23. Re4 {[%clk 0:01:35.1]} 23... Bf6 {[%clk
0:02:10.1]} 24. g4 {[%clk 0:01:31.7]} 24... hxg4 {[%clk 0:02:00.2]} 25. fxg4
{[%clk 0:01:32.1]} 25... Qc5 {[%clk 0:02:01]} 26. Nb3 {[%clk 0:01:27.7]} 26...
Qc7 {[%clk 0:01:52.7]} 27. Nd2 {[%clk 0:01:21.5]} 27... Rc5 {[%clk 0:01:32.6]}
28. Nf3 {[%clk 0:01:14.8]} 28... b4 {[%clk 0:01:06.8]} 29. c4 {[%clk 0:01:02.3]}
29... Bb5 {[%clk 0:00:52.9]} 30. Rc1 {[%clk 0:00:47.9]} 30... a4 {[%clk
0:00:51.3]} 31. Kb1 {[%clk 0:00:48.3]} 31... g5 {[%clk 0:00:36.6]} 32. Nd2
{[%clk 0:00:43.5]} 32... Ba6 {[%clk 0:00:24.9]} 33. Nf1 {[%clk 0:00:43.6]} 33...
Bc8 {[%clk 0:00:24.4]} 34. Ng3 {[%clk 0:00:37.7]} 34... Ba6 {[%clk 0:00:17.1]}
35. Nh5 {[%clk 0:00:35.4]} 35... Be5 {[%clk 0:00:16.1]} 36. Qe3 {[%clk
0:00:35.4]} 36... f6 {[%clk 0:00:15.2]} 37. Ng3 {[%clk 0:00:31.2]} 37... Bxc4
{[%clk 0:00:13.1]} 38. Nf5 {[%clk 0:00:17.3]} 38... Bxa2+ {[%clk 0:00:11.3]} 39.
Kxa2 {[%clk 0:00:18.3]} 39... Rxc1 {[%clk 0:00:11.6]} 40. Nxe7+ {[%clk
0:00:19.6]} 40... Kf7 {[%clk 0:00:10.5]} 41. Nc6 {[%clk 0:00:20.7]} 41... b3+
{[%clk 0:00:10.9]} 42. Ka3 {[%clk 0:00:21.7]} 42... Ra1+ {[%clk 0:00:12.3]} 43.
Kb4 {[%clk 0:00:22.9]} 43... Qb7+ {[%clk 0:00:13.6]} 44. Ka5 {[%clk 0:00:14]}
44... a3 {[%clk 0:00:12.5]} 45. Nd8+ {[%clk 0:00:10.9]} 45... Ke7 {[%clk
0:00:10.1]} 46. Nxb7 {[%clk 0:00:12.8]} 46... axb2+ {[%clk 0:00:10.8]} 47. Kb5
{[%clk 0:00:13.9]} 47... b1=Q {[%clk 0:00:12.2]} 48. Nc5 {[%clk 0:00:14.8]}
48... Qf1+ {[%clk 0:00:11.3]} 49. Kc6 {[%clk 0:00:15.1]} 49... b2 {[%clk
0:00:12.2]} 50. Rb4 {[%clk 0:00:14.2]} 50... b1=Q {[%clk 0:00:12.4]} 51. Rb7+
{[%clk 0:00:15.1]} 51... Qxb7+ {[%clk 0:00:11.4]} 52. Nxb7 {[%clk 0:00:15.4]}
52... Qc1+ {[%clk 0:00:12.9]} 0-1

[Event "*** Titled Tuesday 3|2 Blitz"]
[Site "Chess.com"]
[Date "2016.06.07"]
[Round "1"]
[White "UltimateCrusher2"]
[Black "pKiLz5Rn9b"]
[Result "1-0"]
[WhiteElo "2115"]
[BlackElo "2448"]
[TimeControl "180+2"]
[EndTime "17:11:14 PDT"]
[Termination "UltimateCrusher2 won by resignation"]

1. b3 {[%clk 0:03:00.3]} 1... Nf6 {[%clk 0:03:00.2]} 2. Bb2 {[%clk 0:03:01.7]}
2... g6 {[%clk 0:02:59.4]} 3. Nf3 {[%clk 0:03:03.1]} 3... Bg7 {[%clk 0:03:00.4]}
4. g3 {[%clk 0:03:03.4]} 4... d5 {[%clk 0:03:01.5]} 5. Bg2 {[%clk 0:03:04.1]}
5... O-O {[%clk 0:03:02.8]} 6. O-O {[%clk 0:03:04.9]} 6... c5 {[%clk 0:03:04.1]}
7. e3 {[%clk 0:03:04.9]} 7... Nc6 {[%clk 0:03:05]} 8. c4 {[%clk 0:03:04.1]} 8...
d4 {[%clk 0:03:05.3]} 9. exd4 {[%clk 0:03:04]} 9... cxd4 {[%clk 0:03:06.5]} 10.
Re1 {[%clk 0:03:05.6]} 10... Nd7 {[%clk 0:03:06.4]} 11. d3 {[%clk 0:02:41.7]}
11... e5 {[%clk 0:03:06.6]} 12. Na3 {[%clk 0:02:42.8]} 12... Re8 {[%clk
0:03:04.1]} 13. Nc2 {[%clk 0:02:43.7]} 13... a5 {[%clk 0:03:03.6]} 14. a3 {[%clk
0:02:44.3]} 14... Nc5 {[%clk 0:03:03]} 15. b4 {[%clk 0:02:41.4]} 15... Na4
{[%clk 0:03:04]} 16. Qc1 {[%clk 0:02:37.3]} 16... Nxb2 {[%clk 0:02:57.9]} 17.
Qxb2 {[%clk 0:02:39.2]} 17... Bf5 {[%clk 0:02:55.2]} 18. Rad1 {[%clk 0:02:38.8]}
18... Qb6 {[%clk 0:02:46.9]} 19. b5 {[%clk 0:02:35]} 19... e4 {[%clk 0:02:42.9]}
20. c5 {[%clk 0:02:11.4]} 20... Qxc5 {[%clk 0:02:36.1]} 21. bxc6 {[%clk
0:02:10.3]} 21... exf3 {[%clk 0:02:32.7]} 22. cxb7 {[%clk 0:02:11.4]} 22...
Rxe1+ {[%clk 0:02:29.8]} 23. Rxe1 {[%clk 0:02:11.3]} 23... Rb8 {[%clk 0:02:29]}
24. Bxf3 {[%clk 0:02:07.5]} 24... Bxd3 {[%clk 0:02:26.5]} 25. Na1 {[%clk
0:01:49.5]} 25... Qc3 {[%clk 0:02:16.4]} 26. Qxc3 {[%clk 0:01:40.8]} 26... dxc3
{[%clk 0:02:17.3]} 27. Rc1 {[%clk 0:01:40.9]} 27... Ba6 {[%clk 0:01:51.8]} 28.
Nc2 {[%clk 0:01:32.1]} 28... Be5 {[%clk 0:01:39.7]} 29. Rb1 {[%clk 0:01:02.8]}
29... Bd3 {[%clk 0:01:32.3]} 30. Rc1 {[%clk 0:01:03.3]} 30... Kg7 {[%clk
0:01:32.2]} 31. Ne3 {[%clk 0:01:01.8]} 31... f5 {[%clk 0:01:18.4]} 32. a4 {[%clk
0:00:49.3]} 32... g5 {[%clk 0:00:57.3]} 33. Nd1 {[%clk 0:00:31.6]} 33... c2
{[%clk 0:00:36.3]} 34. Ne3 {[%clk 0:00:31.4]} 34... Bb2 {[%clk 0:00:22.3]} 35.
Rxc2 {[%clk 0:00:32.1]} 35... Bxc2 {[%clk 0:00:23.9]} 36. Nxc2 {[%clk 0:00:34]}
36... Kf6 {[%clk 0:00:22.2]} 37. Ne3 {[%clk 0:00:33.3]} 37... Bd4 {[%clk
0:00:19.9]} 38. Nc4 {[%clk 0:00:27.2]} 38... g4 {[%clk 0:00:20.9]} 39. Bg2
{[%clk 0:00:24.2]} 39... Bc3 {[%clk 0:00:20.3]} 40. Nb6 {[%clk 0:00:24.3]} 40...
Ke6 {[%clk 0:00:19.4]} 41. Nd5 {[%clk 0:00:22.5]} 41... Be5 {[%clk 0:00:20.1]}
42. Nb6 {[%clk 0:00:19]} 42... Bd4 {[%clk 0:00:17.7]} 43. Nc4 {[%clk 0:00:20.1]}
43... Bc3 {[%clk 0:00:18.9]} 44. Nb6 {[%clk 0:00:21.2]} 44... Kd6 {[%clk
0:00:18.1]} 45. Nc4+ {[%clk 0:00:16]} 45... Kc5 {[%clk 0:00:13.6]} 46. Ne3
{[%clk 0:00:11.3]} 46... Kb4 {[%clk 0:00:15]} 47. Nd5+ {[%clk 0:00:10.9]} 47...
Kb3 {[%clk 0:00:14.3]} 48. Nb6 {[%clk 0:00:12.6]} 48... Bd4 {[%clk 0:00:05.6]}
49. Nd7 {[%clk 0:00:11.9]} 49... Ba7 {[%clk 0:00:06.9]} 50. Nxb8 {[%clk
0:00:11.8]} 50... Bxb8 {[%clk 0:00:08.8]} 51. Bc6 {[%clk 0:00:13]} 51... f4
{[%clk 0:00:08.2]} 52. Kf1 {[%clk 0:00:09.9]} 52... fxg3 {[%clk 0:00:08.4]} 53.
fxg3 {[%clk 0:00:11.8]} 53... Kb4 {[%clk 0:00:07.3]} 54. Ke2 {[%clk 0:00:12.8]}
54... Ba7 {[%clk 0:00:08.8]} 55. Kf1 {[%clk 0:00:12.9]} 55... Kc5 {[%clk
0:00:08.9]} 56. Be4 {[%clk 0:00:12.4]} 56... h6 {[%clk 0:00:09.5]} 57. Bf5
{[%clk 0:00:12.5]} 57... Kb4 {[%clk 0:00:09.8]} 58. Bd7 {[%clk 0:00:13.7]} 58...
Kb3 {[%clk 0:00:08.6]} 59. Ke2 {[%clk 0:00:14.6]} 59... Kb4 {[%clk 0:00:10]} 60.
Kd3 {[%clk 0:00:15.9]} 60... Kc5 {[%clk 0:00:07.2]} 61. Bxg4 {[%clk 0:00:11.5]}
61... Kb6 {[%clk 0:00:08.5]} 62. Bf3 {[%clk 0:00:12.7]} 62... Kc7 {[%clk
0:00:09.5]} 63. Be4 {[%clk 0:00:11.8]} 63... Bg1 {[%clk 0:00:10.4]} 64. h3
{[%clk 0:00:13.1]} 64... Bh2 {[%clk 0:00:11.5]} 65. g4 {[%clk 0:00:14.7]} 65...
Bg3 {[%clk 0:00:09.8]} 66. Bd5 {[%clk 0:00:15.4]} 66... Bh4 {[%clk 0:00:08.5]}
67. Ke4 {[%clk 0:00:16.6]} 67... Be1 {[%clk 0:00:08.4]} 68. Kf5 {[%clk
0:00:17.9]} 68... Bh4 {[%clk 0:00:09.3]} 69. Kg6 {[%clk 0:00:19.1]} 69... Bg5
{[%clk 0:00:09.7]} 70. Kh5 {[%clk 0:00:20.7]} 70... Bf4 {[%clk 0:00:10.1]} 71.
h4 {[%clk 0:00:22.1]} 71... Kd7 {[%clk 0:00:09.7]} 72. g5 {[%clk 0:00:22.6]}
72... hxg5 {[%clk 0:00:11.2]} 73. hxg5 {[%clk 0:00:24.4]} 73... Ke7 {[%clk
0:00:12.8]} 74. Kh6 {[%clk 0:00:22.8]} 74... Kf8 {[%clk 0:00:13.3]} 75. Kh7
{[%clk 0:00:23.9]} 1-0